[Event "Titled Tuesday Blitz June 13 Early 2023"]
[White "Miladinovic, Igor"]
[Black "Czerw, Dawid"]
[WhiteFideId "4203380"]
[BlackFideId "1145746"]
[WhiteElo "2568"]
[BlackElo "2144"]
[Result "1-0"]
[Round "7"]
[TimeControl "180+2"]
[Date "2023.06.13"]
[WhiteClock "0:00:13"]
[BlackClock "0:00:00"]
[Board "63"]

1. d4 {[%clk 0:02:55]}  d5 {[%clk 0:03:00]} 2. Bf4 {[%clk 0:02:52]}  Nf6 {[%clk 0:02:59]} 3. e3 {[%clk 0:02:53]}  c5 {[%clk 0:02:57]} 4. dxc5 {[%clk 0:02:52]}  Nc6 {[%clk 0:02:56]} 5. Nc3 {[%clk 0:02:50]}  e5 {[%clk 0:02:54]} 6. Bg5 {[%clk 0:02:50]}  Be6 {[%clk 0:02:54]} 7. Nf3 {[%clk 0:02:45]}  Bxc5 {[%clk 0:02:50]} 8. Bb5 {[%clk 0:02:45]}  h6 {[%clk 0:02:34]} 9. Bh4 {[%clk 0:02:41]}  Qd6 {[%clk 0:02:04]} 10. Bg3 {[%clk 0:02:04]}  Nd7 {[%clk 0:02:01]} 11. Bxc6 {[%clk 0:01:56]}  bxc6 {[%clk 0:01:59]} 12. Nxe5 {[%clk 0:01:48]}  Nxe5 {[%clk 0:01:53]} 13. Qh5 {[%clk 0:01:48]}  Qb8 {[%clk 0:01:02]} 14. Bxe5 {[%clk 0:01:34]}  Qb4 {[%clk 0:00:20]} 15. a3 {[%clk 0:01:17]}  Qb7 {[%clk 0:00:18]} 16. O-O {[%clk 0:01:04]}  O-O {[%clk 0:00:18]} 17. b4 {[%clk 0:01:01]}  Be7 {[%clk 0:00:17]} 18. Qf3 {[%clk 0:01:00]}  f6 {[%clk 0:00:17]} 19. Bd4 {[%clk 0:01:00]}  a5 {[%clk 0:00:17]} 20. Rab1 {[%clk 0:00:58]}  axb4 {[%clk 0:00:17]} 21. axb4 {[%clk 0:00:59]}  Ra3 {[%clk 0:00:17]} 22. Ne2 {[%clk 0:00:55]}  Rfa8 {[%clk 0:00:17]} 23. Nf4 {[%clk 0:00:54]}  Bf7 {[%clk 0:00:17]} 24. Nd3 {[%clk 0:00:52]}  Ra2 {[%clk 0:00:16]} 25. Bc5 {[%clk 0:00:52]}  Bd8 {[%clk 0:00:16]} 26. Rfc1 {[%clk 0:00:46]}  Bg6 {[%clk 0:00:16]} 27. Qg3 {[%clk 0:00:44]}  Be4 {[%clk 0:00:14]} 28. Nf4 {[%clk 0:00:26]}  Bc7 {[%clk 0:00:14]} 29. Bd4 {[%clk 0:00:24]}  Bxf4 {[%clk 0:00:10]} 30. exf4 {[%clk 0:00:20]}  Bxc2 {[%clk 0:00:11]} 31. Ra1 {[%clk 0:00:19]}  Rxa1 {[%clk 0:00:11]} 32. Bxa1 {[%clk 0:00:20]}  Rxa1 {[%clk 0:00:11]} 33. Rxa1 {[%clk 0:00:19]}  Qxb4 {[%clk 0:00:06]} 34. h3 {[%clk 0:00:19]}  Kh7 {[%clk 0:00:04]} 35. Rc1 {[%clk 0:00:19]}  Ba4 {[%clk 0:00:02]} 36. Qc3 {[%clk 0:00:17]}  Qxc3 {[%clk 0:00:02]} 37. Rxc3 {[%clk 0:00:17]}  Bb5 {[%clk 0:00:03]} 38. f5 {[%clk 0:00:18]}  Kg8 {[%clk 0:00:03]} 39. f4 {[%clk 0:00:17]}  Kf7 {[%clk 0:00:03]} 40. Kf2 {[%clk 0:00:18]}  Ke7 {[%clk 0:00:04]} 41. Ke3 {[%clk 0:00:18]}  Kd6 {[%clk 0:00:05]} 42. Kd4 {[%clk 0:00:19]}  Bc4 {[%clk 0:00:05]} 43. Rc1 {[%clk 0:00:15]}  c5+ {[%clk 0:00:05]} 44. Kc3 {[%clk 0:00:15]}  Bb5 {[%clk 0:00:06]} 45. g4 {[%clk 0:00:15]}  d4+ {[%clk 0:00:06]} 46. Kb3 {[%clk 0:00:15]}  Kd5 {[%clk 0:00:07]} 47. Re1 {[%clk 0:00:14]}  c4+ {[%clk 0:00:05]} 48. Kb4 {[%clk 0:00:15]}  Bc6 {[%clk 0:00:04]} 49. Re7 {[%clk 0:00:15]}  d3 {[%clk 0:00:04]} 50. Kc3 {[%clk 0:00:14]}  Ba4 {[%clk 0:00:03]} 51. Rxg7 {[%clk 0:00:14]}  Ke4 {[%clk 0:00:03]} 52. Re7+ {[%clk 0:00:14]}  Kxf4 {[%clk 0:00:00]} 53. Re6 {[%clk 0:00:13]} 1-0


[Site "https://www.chess.com"]

[Event "Titled Tuesday Blitz June 13 Early 2023"]
[White "Weetik, Vjacheslav"]
[Black "Skliarov, Viktor"]
[WhiteFideId "4153472"]
[BlackFideId "14106736"]
[WhiteElo "2469"]
[BlackElo "2317"]
[Result "1-0"]
[Round "7"]
[TimeControl "180+2"]
[Date "2023.06.13"]
[WhiteClock "0:00:10"]
[BlackClock "0:00:03"]
[Board "64"]

1. d4 {[%clk 0:02:57]}  Nf6 {[%clk 0:03:00]} 2. c4 {[%clk 0:02:57]}  e6 {[%clk 0:03:00]} 3. g3 {[%clk 0:02:56]}  c5 {[%clk 0:03:00]} 4. d5 {[%clk 0:02:51]}  exd5 {[%clk 0:03:00]} 5. cxd5 {[%clk 0:02:52]}  b5 {[%clk 0:03:01]} 6. e4 {[%clk 0:02:50]}  Nxe4 {[%clk 0:03:01]} 7. Qe2 {[%clk 0:02:42]}  Qe7 {[%clk 0:03:00]} 8. Bg2 {[%clk 0:02:41]}  Nd6 {[%clk 0:02:48]} 9. Be3 {[%clk 0:02:41]}  Na6 {[%clk 0:02:38]} 10. Nh3 {[%clk 0:02:17]}  Rb8 {[%clk 0:02:26]} 11. O-O {[%clk 0:02:16]}  Nf5 {[%clk 0:02:26]} 12. d6 {[%clk 0:02:08]}  Qe5 {[%clk 0:02:14]} 13. Re1 {[%clk 0:01:04]}  Nxe3 {[%clk 0:02:06]} 14. Qd2 {[%clk 0:00:51]}  Qxd6 {[%clk 0:01:34]} 15. Qxe3+ {[%clk 0:00:47]}  Kd8 {[%clk 0:01:21]} 16. Nc3 {[%clk 0:00:44]}  Be7 {[%clk 0:00:26]} 17. Rad1 {[%clk 0:00:40]}  Qe6 {[%clk 0:00:26]} 18. Qf4 {[%clk 0:00:26]}  Qf6 {[%clk 0:00:25]} 19. Qd2 {[%clk 0:00:20]}  Nc7 {[%clk 0:00:24]} 20. Nf4 {[%clk 0:00:19]}  Re8 {[%clk 0:00:13]} 21. Nfd5 {[%clk 0:00:16]}  Nxd5 {[%clk 0:00:14]} 22. Nxd5 {[%clk 0:00:17]}  Qa6 {[%clk 0:00:14]} 23. Qf4 {[%clk 0:00:12]}  Bd6 {[%clk 0:00:03]} 24. Qxf7 {[%clk 0:00:10]} 1-0


[Site "https://www.chess.com"]

[Event "Titled Tuesday Blitz June 13 Early 2023"]
[White "Malyi, Viacheslav"]
[Black "Shuvalova, Polina"]
[WhiteFideId "14123983"]
[BlackFideId "24171760"]
[WhiteElo "2291"]
[BlackElo "2281"]
[Result "0-1"]
[Round "7"]
[TimeControl "180+2"]
[Date "2023.06.13"]
[WhiteClock "0:00:00"]
[BlackClock "0:00:08"]
[Board "66"]

1. e4 {[%clk 0:03:00]}  c6 {[%clk 0:02:59]} 2. c4 {[%clk 0:02:58]}  d5 {[%clk 0:03:00]} 3. exd5 {[%clk 0:02:59]}  cxd5 {[%clk 0:03:00]} 4. cxd5 {[%clk 0:03:00]}  Nf6 {[%clk 0:03:01]} 5. Qa4+ {[%clk 0:03:00]}  Nbd7 {[%clk 0:03:00]} 6. Nc3 {[%clk 0:02:53]}  g6 {[%clk 0:03:00]} 7. Bc4 {[%clk 0:02:53]}  Bg7 {[%clk 0:03:00]} 8. d3 {[%clk 0:02:51]}  O-O {[%clk 0:03:01]} 9. Nf3 {[%clk 0:02:50]}  a6 {[%clk 0:02:58]} 10. Qa3 {[%clk 0:02:39]}  Qc7 {[%clk 0:02:43]} 11. O-O {[%clk 0:02:34]}  Nb6 {[%clk 0:02:28]} 12. Qb3 {[%clk 0:02:33]}  Bg4 {[%clk 0:02:23]} 13. Be3 {[%clk 0:02:25]}  Nbd7 {[%clk 0:02:23]} 14. d6 {[%clk 0:02:09]}  Qxd6 {[%clk 0:02:06]} 15. Ne4 {[%clk 0:01:54]}  Qc7 {[%clk 0:01:47]} 16. Rac1 {[%clk 0:01:52]}  Qa5 {[%clk 0:01:35]} 17. Bd2 {[%clk 0:01:34]}  Qh5 {[%clk 0:01:32]} 18. Ng3 {[%clk 0:01:34]}  Bxf3 {[%clk 0:01:12]} 19. Nxh5 {[%clk 0:01:34]}  Bxh5 {[%clk 0:01:13]} 20. h3 {[%clk 0:01:25]}  b5 {[%clk 0:01:11]} 21. Bd5 {[%clk 0:01:23]}  Nxd5 {[%clk 0:01:07]} 22. Qxd5 {[%clk 0:01:24]}  Nf6 {[%clk 0:01:07]} 23. Qb7 {[%clk 0:01:18]}  Be2 {[%clk 0:01:06]} 24. Rfe1 {[%clk 0:00:59]}  Bxd3 {[%clk 0:01:03]} 25. Qxe7 {[%clk 0:00:55]}  Bc4 {[%clk 0:00:52]} 26. Bc3 {[%clk 0:00:49]}  Nd5 {[%clk 0:00:51]} 27. Qa3 {[%clk 0:00:15]}  Nxc3 {[%clk 0:00:50]} 28. Rxc3 {[%clk 0:00:13]}  Bxc3 {[%clk 0:00:47]} 29. bxc3 {[%clk 0:00:14]}  a5 {[%clk 0:00:45]} 30. Qb2 {[%clk 0:00:13]}  a4 {[%clk 0:00:43]} 31. a3 {[%clk 0:00:13]}  Rad8 {[%clk 0:00:41]} 32. Re7 {[%clk 0:00:12]}  Rd5 {[%clk 0:00:40]} 33. Kh2 {[%clk 0:00:11]}  Rf5 {[%clk 0:00:39]} 34. f3 {[%clk 0:00:09]}  h5 {[%clk 0:00:39]} 35. Qd2 {[%clk 0:00:09]}  Rd5 {[%clk 0:00:38]} 36. Qe1 {[%clk 0:00:08]}  Rfd8 {[%clk 0:00:33]} 37. Re8+ {[%clk 0:00:08]}  Rxe8 {[%clk 0:00:31]} 38. Qxe8+ {[%clk 0:00:09]}  Kg7 {[%clk 0:00:32]} 39. Qe7 {[%clk 0:00:09]}  Rf5 {[%clk 0:00:29]} 40. Kg3 {[%clk 0:00:08]}  Rf6 {[%clk 0:00:28]} 41. Qd8 {[%clk 0:00:08]}  Re6 {[%clk 0:00:28]} 42. Qd4+ {[%clk 0:00:08]}  Kg8 {[%clk 0:00:28]} 43. h4 {[%clk 0:00:09]}  Re2 {[%clk 0:00:26]} 44. Qd8+ {[%clk 0:00:09]}  Kg7 {[%clk 0:00:26]} 45. Qd4+ {[%clk 0:00:09]}  Kg8 {[%clk 0:00:27]} 46. Qd6 {[%clk 0:00:07]}  Ra2 {[%clk 0:00:25]} 47. Qd8+ {[%clk 0:00:07]}  Kh7 {[%clk 0:00:24]} 48. Qd4 {[%clk 0:00:08]}  Rxa3 {[%clk 0:00:24]} 49. Kf4 {[%clk 0:00:07]}  Ra2 {[%clk 0:00:22]} 50. g4 {[%clk 0:00:06]}  hxg4 {[%clk 0:00:21]} 51. fxg4 {[%clk 0:00:05]}  Rh2 {[%clk 0:00:16]} 52. Kg3 {[%clk 0:00:05]}  Rh1 {[%clk 0:00:15]} 53. h5 {[%clk 0:00:02]}  Rf1 {[%clk 0:00:12]} 54. Kg2 {[%clk 0:00:02]}  gxh5 {[%clk 0:00:10]} 55. Kg3 {[%clk 0:00:01]}  hxg4 {[%clk 0:00:10]} 56. Qe4+ {[%clk 0:00:02]}  Kg7 {[%clk 0:00:09]} 57. Qxg4+ {[%clk 0:00:03]}  Kf8 {[%clk 0:00:09]} 58. Qc8+ {[%clk 0:00:03]}  Ke7 {[%clk 0:00:08]} 59. Qc7+ {[%clk 0:00:03]}  Kf6 {[%clk 0:00:08]} 60. Qf4+ {[%clk 0:00:00]}  Rxf4 {[%clk 0:00:08]} 0-1


[Site "https://www.chess.com"]

[Event "Titled Tuesday Blitz June 13 Early 2023"]
[White "gau_npukyputb"]
[Black "Arencibia Monduy, Antonio"]
[BlackFideId "3507939"]
[WhiteElo "2717"]
[BlackElo "2568"]
[Result "1-0"]
[Round "7"]
[TimeControl "180+2"]
[Date "2023.06.13"]
[WhiteClock "0:01:56"]
[BlackClock "0:00:00"]
[Board "67"]

1. f4 {[%clk 0:02:59]}  Nf6 {[%clk 0:02:53]} 2. d3 {[%clk 0:02:59]}  d5 {[%clk 0:02:53]} 3. Nf3 {[%clk 0:02:59]}  e6 {[%clk 0:02:50]} 4. Nbd2 {[%clk 0:02:56]}  Be7 {[%clk 0:02:44]} 5. e4 {[%clk 0:02:55]}  dxe4 {[%clk 0:02:43]} 6. dxe4 {[%clk 0:02:56]}  b6 {[%clk 0:02:36]} 7. e5 {[%clk 0:02:55]}  Nd5 {[%clk 0:02:30]} 8. Bb5+ {[%clk 0:02:54]}  c6 {[%clk 0:02:29]} 9. Bd3 {[%clk 0:02:53]}  Nxf4 {[%clk 0:02:24]} 10. Ne4 {[%clk 0:02:33]}  Nxd3+ {[%clk 0:02:13]} 11. cxd3 {[%clk 0:02:34]}  Ba6 {[%clk 0:02:05]} 12. d4 {[%clk 0:02:33]}  O-O {[%clk 0:01:59]} 13. h4 {[%clk 0:02:29]}  f5 {[%clk 0:01:53]} 14. exf6 {[%clk 0:02:25]}  Bxf6 {[%clk 0:01:53]} 15. Qc2 {[%clk 0:02:10]}  Bxd4 {[%clk 0:00:59]} 16. Neg5 {[%clk 0:02:09]}  g6 {[%clk 0:00:47]} 17. h5 {[%clk 0:02:09]}  Qf6 {[%clk 0:00:17]} 18. hxg6 {[%clk 0:02:04]}  hxg6 {[%clk 0:00:10]} 19. Nh7 {[%clk 0:02:02]}  Qg7 {[%clk 0:00:06]} 20. Nxf8 {[%clk 0:01:59]}  Kxf8 {[%clk 0:00:07]} 21. Bh6 {[%clk 0:01:58]}  Bf6 {[%clk 0:00:00]} 22. Qxg6 {[%clk 0:01:56]} 1-0


[Site "https://www.chess.com"]

[Event "Titled Tuesday Blitz June 13 Early 2023"]
[White "Jaskolka, Tomasz"]
[Black "Tristan, Leonardo"]
[WhiteFideId "1170791"]
[BlackFideId "113816"]
[WhiteElo "2155"]
[BlackElo "2461"]
[Result "1-0"]
[Round "7"]
[TimeControl "180+2"]
[Date "2023.06.13"]
[WhiteClock "0:00:08"]
[BlackClock "0:00:00"]
[Board "68"]

1. d4 {[%clk 0:03:00]}  d5 {[%clk 0:03:00]} 2. Nc3 {[%clk 0:03:01]}  e6 {[%clk 0:03:00]} 3. Bf4 {[%clk 0:03:01]}  Bd6 {[%clk 0:02:58]} 4. Bxd6 {[%clk 0:02:58]}  cxd6 {[%clk 0:02:58]} 5. e3 {[%clk 0:02:58]}  f5 {[%clk 0:02:57]} 6. Nf3 {[%clk 0:02:58]}  Nf6 {[%clk 0:02:57]} 7. Be2 {[%clk 0:02:59]}  O-O {[%clk 0:02:57]} 8. O-O {[%clk 0:02:57]}  b6 {[%clk 0:02:55]} 9. Nd2 {[%clk 0:02:56]}  Bb7 {[%clk 0:02:55]} 10. a4 {[%clk 0:02:55]}  a6 {[%clk 0:02:55]} 11. Bd3 {[%clk 0:02:46]}  Nbd7 {[%clk 0:02:54]} 12. Qb1 {[%clk 0:02:39]}  Ne4 {[%clk 0:02:53]} 13. Ndxe4 {[%clk 0:02:34]}  dxe4 {[%clk 0:02:50]} 14. Be2 {[%clk 0:02:34]}  e5 {[%clk 0:02:46]} 15. Qa2+ {[%clk 0:02:30]}  Kh8 {[%clk 0:02:46]} 16. dxe5 {[%clk 0:02:15]}  dxe5 {[%clk 0:02:47]} 17. Rad1 {[%clk 0:02:14]}  Qe7 {[%clk 0:02:47]} 18. Nd5 {[%clk 0:02:12]}  Qf7 {[%clk 0:02:39]} 19. Bc4 {[%clk 0:02:08]}  b5 {[%clk 0:02:39]} 20. Bb3 {[%clk 0:02:04]}  bxa4 {[%clk 0:02:36]} 21. Qxa4 {[%clk 0:01:51]}  Nc5 {[%clk 0:02:37]} 22. Qb4 {[%clk 0:01:50]}  Nxb3 {[%clk 0:02:36]} 23. Qxb3 {[%clk 0:01:50]}  Rab8 {[%clk 0:02:24]} 24. Nc3 {[%clk 0:01:47]}  Qxb3 {[%clk 0:01:28]} 25. cxb3 {[%clk 0:01:48]}  Bc8 {[%clk 0:01:28]} 26. Rd5 {[%clk 0:01:26]}  Rxb3 {[%clk 0:01:28]} 27. Rxe5 {[%clk 0:01:17]}  Rxb2 {[%clk 0:01:28]} 28. h4 {[%clk 0:01:15]}  Rc2 {[%clk 0:01:18]} 29. Na4 {[%clk 0:01:02]}  Bd7 {[%clk 0:01:00]} 30. Nc5 {[%clk 0:01:02]}  Bb5 {[%clk 0:01:01]} 31. Rd1 {[%clk 0:00:59]}  h6 {[%clk 0:00:56]} 32. h5 {[%clk 0:00:44]}  f4 {[%clk 0:00:40]} 33. Ne6 {[%clk 0:00:18]}  fxe3 {[%clk 0:00:41]} 34. Nxf8 {[%clk 0:00:18]}  exf2+ {[%clk 0:00:41]} 35. Kh2 {[%clk 0:00:17]}  f1=Q {[%clk 0:00:36]} 36. Rxf1 {[%clk 0:00:15]}  Bxf1 {[%clk 0:00:35]} 37. Ng6+ {[%clk 0:00:10]}  Kh7 {[%clk 0:00:34]} 38. Re8 {[%clk 0:00:06]}  Rxg2+ {[%clk 0:00:34]} 39. Kh1 {[%clk 0:00:07]}  Rxg6 {[%clk 0:00:34]} 40. hxg6+ {[%clk 0:00:08]}  Kxg6 {[%clk 0:00:35]} 41. Rxe4 {[%clk 0:00:08]}  Bb5 {[%clk 0:00:34]} 42. Kh2 {[%clk 0:00:07]}  Kf6 {[%clk 0:00:34]} 43. Kg3 {[%clk 0:00:08]}  g5 {[%clk 0:00:32]} 44. Rd4 {[%clk 0:00:07]}  Ke5 {[%clk 0:00:22]} 45. Rd8 {[%clk 0:00:07]}  h5 {[%clk 0:00:20]} 46. Rh8 {[%clk 0:00:04]}  Be2 {[%clk 0:00:19]} 47. Re8+ {[%clk 0:00:04]}  Kf5 {[%clk 0:00:07]} 48. Rxe2 {[%clk 0:00:05]}  h4+ {[%clk 0:00:08]} 49. Kh3 {[%clk 0:00:05]}  Kf4 {[%clk 0:00:09]} 50. Rf2+ {[%clk 0:00:05]}  Ke3 {[%clk 0:00:09]} 51. Ra2 {[%clk 0:00:06]}  Kf3 {[%clk 0:00:09]} 52. Ra3+ {[%clk 0:00:06]}  Kf4 {[%clk 0:00:09]} 53. Rxa6 {[%clk 0:00:06]}  g4+ {[%clk 0:00:09]} 54. Kxh4 {[%clk 0:00:06]}  g3 {[%clk 0:00:10]} 55. Rf6+ {[%clk 0:00:06]}  Ke5 {[%clk 0:00:10]} 56. Rg6 {[%clk 0:00:07]}  g2 {[%clk 0:00:00]} 57. Rxg2 {[%clk 0:00:08]} 1-0


[Site "https://www.chess.com"]

[Event "Titled Tuesday Blitz June 13 Early 2023"]
[White "Kubicka, Anna"]
[Black "Domingo Nunez, Alejandro"]
[WhiteFideId "1152254"]
[BlackFideId "22245561"]
[WhiteElo "2144"]
[BlackElo "2291"]
[Result "0-1"]
[Round "7"]
[TimeControl "180+2"]
[Date "2023.06.13"]
[WhiteClock "0:00:00"]
[BlackClock "0:00:06"]
[Board "73"]

1. e4 {[%clk 0:03:00]}  g6 {[%clk 0:02:59]} 2. d4 {[%clk 0:03:00]}  Bg7 {[%clk 0:03:00]} 3. Be3 {[%clk 0:03:01]}  c6 {[%clk 0:02:59]} 4. h4 {[%clk 0:02:59]}  d5 {[%clk 0:02:59]} 5. e5 {[%clk 0:02:58]}  h5 {[%clk 0:02:54]} 6. Nf3 {[%clk 0:02:57]}  Bg4 {[%clk 0:02:51]} 7. Nbd2 {[%clk 0:02:55]}  Nh6 {[%clk 0:02:50]} 8. Be2 {[%clk 0:02:48]}  Nf5 {[%clk 0:02:49]} 9. Ng5 {[%clk 0:02:42]}  Bxe2 {[%clk 0:02:39]} 10. Qxe2 {[%clk 0:02:43]}  e6 {[%clk 0:02:35]} 11. O-O-O {[%clk 0:02:37]}  Qa5 {[%clk 0:02:01]} 12. Kb1 {[%clk 0:02:35]}  Qa6 {[%clk 0:02:02]} 13. c4 {[%clk 0:02:33]}  c5 {[%clk 0:01:52]} 14. Nb3 {[%clk 0:02:04]}  cxd4 {[%clk 0:01:44]} 15. Nxd4 {[%clk 0:02:04]}  Nxd4 {[%clk 0:01:42]} 16. Bxd4 {[%clk 0:02:02]}  Nc6 {[%clk 0:01:42]} 17. Qf3 {[%clk 0:01:52]}  O-O {[%clk 0:01:30]} 18. cxd5 {[%clk 0:01:49]}  exd5 {[%clk 0:01:20]} 19. g4 {[%clk 0:01:49]}  hxg4 {[%clk 0:00:37]} 20. Qxg4 {[%clk 0:01:49]}  Qc4 {[%clk 0:00:38]} 21. h5 {[%clk 0:01:36]}  Nb4 {[%clk 0:00:38]} 22. a3 {[%clk 0:00:59]}  Qa2+ {[%clk 0:00:29]} 23. Kc1 {[%clk 0:00:59]}  Qc4+ {[%clk 0:00:25]} 24. Kb1 {[%clk 0:00:49]}  Qa2+ {[%clk 0:00:23]} 25. Kc1 {[%clk 0:00:48]}  Rac8+ {[%clk 0:00:22]} 26. Kd2 {[%clk 0:00:48]}  Rc2+ {[%clk 0:00:21]} 27. Ke1 {[%clk 0:00:46]}  Qc4 {[%clk 0:00:20]} 28. hxg6 {[%clk 0:00:39]}  Nd3+ {[%clk 0:00:15]} 29. Rxd3 {[%clk 0:00:39]}  Rc1+ {[%clk 0:00:14]} 30. Rd1 {[%clk 0:00:33]}  Rxd1+ {[%clk 0:00:10]} 31. Qxd1 {[%clk 0:00:27]}  f6 {[%clk 0:00:10]} 32. Ne6 {[%clk 0:00:16]}  Re8 {[%clk 0:00:10]} 33. Nxg7 {[%clk 0:00:15]}  Kxg7 {[%clk 0:00:11]} 34. Bc3 {[%clk 0:00:10]}  d4 {[%clk 0:00:08]} 35. Qh5 {[%clk 0:00:09]}  Rxe5+ {[%clk 0:00:07]} 36. Qxe5 {[%clk 0:00:07]}  fxe5 {[%clk 0:00:08]} 37. Rh4 {[%clk 0:00:05]}  Qd3 {[%clk 0:00:07]} 38. Bd2 {[%clk 0:00:04]}  Kxg6 {[%clk 0:00:07]} 39. Rg4+ {[%clk 0:00:04]}  Kf5 {[%clk 0:00:08]} 40. Rg3 {[%clk 0:00:04]}  Qb1+ {[%clk 0:00:07]} 41. Ke2 {[%clk 0:00:00]}  Ke4 {[%clk 0:00:06]} 0-1


[Site "https://www.chess.com"]

[Event "Titled Tuesday Blitz June 13 Early 2023"]
[White "Ovetchkin, Roman"]
[Black "feuervogel1000000"]
[WhiteFideId "4119991"]
[WhiteElo "2398"]
[BlackElo "2512"]
[Result "0-1"]
[Round "7"]
[TimeControl "180+2"]
[Date "2023.06.13"]
[WhiteClock "0:00:54"]
[BlackClock "0:01:52"]
[Board "74"]

1. d4 {[%clk 0:03:00]}  Nf6 {[%clk 0:02:59]} 2. c4 {[%clk 0:03:00]}  e6 {[%clk 0:03:00]} 3. g3 {[%clk 0:03:00]}  d5 {[%clk 0:02:59]} 4. Bg2 {[%clk 0:02:59]}  Be7 {[%clk 0:03:00]} 5. Nf3 {[%clk 0:02:59]}  O-O {[%clk 0:03:00]} 6. Qc2 {[%clk 0:02:58]}  c6 {[%clk 0:03:00]} 7. O-O {[%clk 0:02:57]}  a5 {[%clk 0:03:00]} 8. Nbd2 {[%clk 0:02:57]}  a4 {[%clk 0:02:59]} 9. Rd1 {[%clk 0:02:52]}  Qa5 {[%clk 0:02:55]} 10. e4 {[%clk 0:02:48]}  Nxe4 {[%clk 0:02:38]} 11. Nxe4 {[%clk 0:02:47]}  dxe4 {[%clk 0:02:39]} 12. Qxe4 {[%clk 0:02:47]}  Nd7 {[%clk 0:02:37]} 13. Bd2 {[%clk 0:02:41]}  Qf5 {[%clk 0:02:36]} 14. Qxf5 {[%clk 0:02:27]}  exf5 {[%clk 0:02:36]} 15. b3 {[%clk 0:02:14]}  Nf6 {[%clk 0:02:30]} 16. Re1 {[%clk 0:02:08]}  Ne4 {[%clk 0:02:28]} 17. Be3 {[%clk 0:01:46]}  Bb4 {[%clk 0:02:28]} 18. Rec1 {[%clk 0:01:46]}  Be6 {[%clk 0:02:12]} 19. Ng5 {[%clk 0:01:23]}  Nxg5 {[%clk 0:02:08]} 20. Bxg5 {[%clk 0:01:23]}  h6 {[%clk 0:02:00]} 21. Be3 {[%clk 0:01:22]}  Rfd8 {[%clk 0:01:59]} 22. a3 {[%clk 0:01:19]}  axb3 {[%clk 0:01:55]} 23. Rcb1 {[%clk 0:00:54]}  Bc3 {[%clk 0:01:52]} 0-1


[Site "https://www.chess.com"]

[Event "Titled Tuesday Blitz June 13 Early 2023"]
[White "Fiorito, Joaquin"]
[Black "kuanysh1981"]
[WhiteFideId "180173"]
[WhiteElo "2199"]
[BlackElo "2511"]
[Result "1-0"]
[Round "7"]
[TimeControl "180+2"]
[Date "2023.06.13"]
[WhiteClock "0:01:15"]
[BlackClock "0:00:05"]
[Board "75"]

1. d4 {[%clk 0:03:00]}  Nf6 {[%clk 0:02:59]} 2. c4 {[%clk 0:03:01]}  e6 {[%clk 0:02:56]} 3. Nc3 {[%clk 0:03:01]}  Bb4 {[%clk 0:02:54]} 4. e3 {[%clk 0:03:02]}  O-O {[%clk 0:02:53]} 5. Bd2 {[%clk 0:03:01]}  c5 {[%clk 0:02:46]} 6. a3 {[%clk 0:03:01]}  Bxc3 {[%clk 0:02:45]} 7. Bxc3 {[%clk 0:03:01]}  Ne4 {[%clk 0:02:45]} 8. Ne2 {[%clk 0:03:02]}  b6 {[%clk 0:02:36]} 9. d5 {[%clk 0:03:00]}  Bb7 {[%clk 0:02:24]} 10. Rc1 {[%clk 0:02:49]}  exd5 {[%clk 0:02:22]} 11. cxd5 {[%clk 0:02:48]}  d6 {[%clk 0:02:21]} 12. Ng3 {[%clk 0:02:47]}  Nxc3 {[%clk 0:02:20]} 13. Rxc3 {[%clk 0:02:48]}  Nd7 {[%clk 0:02:16]} 14. Be2 {[%clk 0:02:38]}  Re8 {[%clk 0:02:05]} 15. e4 {[%clk 0:02:33]}  Nf6 {[%clk 0:02:03]} 16. f3 {[%clk 0:02:33]}  a6 {[%clk 0:01:53]} 17. a4 {[%clk 0:02:30]}  Qd7 {[%clk 0:01:51]} 18. Qb3 {[%clk 0:02:25]}  Qc7 {[%clk 0:01:42]} 19. O-O {[%clk 0:02:24]}  Rab8 {[%clk 0:01:41]} 20. Qc2 {[%clk 0:02:23]}  Bc8 {[%clk 0:01:37]} 21. b4 {[%clk 0:02:23]}  Qd8 {[%clk 0:01:31]} 22. b5 {[%clk 0:02:17]}  a5 {[%clk 0:01:28]} 23. Bc4 {[%clk 0:02:14]}  h5 {[%clk 0:01:21]} 24. Re3 {[%clk 0:02:11]}  h4 {[%clk 0:01:20]} 25. Nh1 {[%clk 0:02:04]}  Nh5 {[%clk 0:01:20]} 26. f4 {[%clk 0:01:56]}  Qf6 {[%clk 0:01:20]} 27. e5 {[%clk 0:01:49]}  Qh6 {[%clk 0:01:00]} 28. Qf2 {[%clk 0:01:39]}  Bf5 {[%clk 0:00:55]} 29. Qxh4 {[%clk 0:01:24]}  dxe5 {[%clk 0:00:44]} 30. Rxe5 {[%clk 0:01:25]}  Rxe5 {[%clk 0:00:42]} 31. fxe5 {[%clk 0:01:26]}  Qe3+ {[%clk 0:00:22]} 32. Qf2 {[%clk 0:01:25]}  Qxe5 {[%clk 0:00:22]} 33. Qxf5 {[%clk 0:01:25]}  Qd4+ {[%clk 0:00:22]} 34. Nf2 {[%clk 0:01:25]}  Nf4 {[%clk 0:00:18]} 35. Qe4 {[%clk 0:01:21]}  Qd2 {[%clk 0:00:15]} 36. Rd1 {[%clk 0:01:18]}  Qb4 {[%clk 0:00:05]} 37. Qxf4 {[%clk 0:01:17]}  Re8 {[%clk 0:00:05]} 38. d6 {[%clk 0:01:17]}  Kf8 {[%clk 0:00:05]} 39. Qxf7# {[%clk 0:01:15]} 1-0


[Site "https://www.chess.com"]